fUST/lending_fUST_20260529
["ID","MTS","AMOUNT","RATE_DAILY","PERIOD"]
[423291332,1780033842000,-500.0,9.82e-05,2]
[423291336,1780033842000,-546.32635414,9.82e-05,2]
[423291329,1780033842000,-500.0,9.82e-05,2]
[423291333,1780033842000,-500.0,9.82e-05,2]
[423291324,1780033842000,-500.0,9.819e-05,2]
[423291338,1780033842000,-500.0,9.82e-05,2]
[423291343,1780033842000,-1986.55,9.82e-05,2]
[423291339,1780033842000,-500.0,9.82e-05,2]
[423291347,1780033842000,-240.06,9.82e-05,2]
[423291341,1780033842000,-543.62,9.82e-05,2]
[423291340,1780033842000,-500.0,9.82e-05,2]
[423291344,1780033842000,-500.0,9.82e-05,2]
[423291342,1780033842000,-500.0,9.82e-05,2]
[423291337,1780033842000,-500.0,9.82e-05,2]
[423291345,1780033842000,-298.68,9.82e-05,2]
[423291346,1780033842000,-238.06,9.82e-05,2]
[423291348,1780033842000,-304.98,9.821e-05,2]
[423291350,1780033842000,-500.0,9.821e-05,2]
[423291353,1780033842000,-500.0,9.821e-05,2]
[423291351,1780033842000,-500.0,9.821e-05,2]
[423291352,1780033842000,-500.0,9.821e-05,2]
[423291349,1780033842000,-626.18,9.821e-05,2]
[423291357,1780033842000,-500.0,9.821e-05,2]
[423291360,1780033842000,-500.0,9.821e-05,2]
[423291358,1780033842000,-386.24,9.821e-05,2]
[423291355,1780033842000,-181.92,9.821e-05,2]
[423291299,1780033842000,-500.0,9.548e-05,2]
[423291334,1780033842000,-500.0,9.82e-05,2]
[423291330,1780033842000,-500.0,9.82e-05,2]
[423291359,1780033842000,-500.0,9.821e-05,2]
[423291327,1780033842000,-500.0,9.82e-05,2]
[423291295,1780033842000,-500.0,9.548e-05,2]
[423291297,1780033842000,-500.0,9.548e-05,2]
[423291298,1780033842000,-500.0,9.548e-05,2]
[423291306,1780033842000,-500.0,9.548e-05,2]
[423291303,1780033842000,-151.0,9.548e-05,2]
[423291305,1780033842000,-515.68,9.548e-05,2]
[423291296,1780033842000,-500.0,9.548e-05,2]
[423291300,1780033842000,-611.94,9.548e-05,2]
[423291326,1780033842000,-500.0,9.819e-05,2]
[423291301,1780033842000,-500.0,9.548e-05,2]
[423291302,1780033842000,-151.0,9.548e-05,2]
[423291308,1780033842000,-500.0,9.548e-05,2]
[423291310,1780033842000,-500.0,9.548e-05,2]
[423291320,1780033842000,-500.0,9.819e-05,2]
[423291304,1780033842000,-535.52,9.548e-05,2]
[423291309,1780033842000,-500.0,9.548e-05,2]
[423291321,1780033842000,-500.0,9.819e-05,2]
[423291331,1780033842000,-500.0,9.82e-05,2]
[423291325,1780033842000,-500.0,9.819e-05,2]
[423291319,1780033842000,-500.0,9.819e-05,2]
[423291318,1780033842000,-500.0,9.819e-05,2]
[423291315,1780033842000,-500.0,9.548e-05,2]
[423291323,1780033842000,-159.74910392,9.819e-05,2]
[423291316,1780033842000,-587.0,9.679e-05,2]
[423291312,1780033842000,-500.0,9.548e-05,2]
[423291313,1780033842000,-500.0,9.548e-05,2]
[423291322,1780033842000,-500.0,9.819e-05,2]
[423291314,1780033842000,-515.79773657,9.548e-05,2]
[423291311,1780033842000,-500.0,9.548e-05,2]
[423291317,1780033842000,-300.49652969,9.789e-05,2]
[423291407,1780033843000,-500.0,9.822e-05,2]
[423291419,1780033843000,-500.0,0.00010093,2]
[423291403,1780033843000,-412.18,9.822e-05,2]
[423291397,1780033843000,-500.0,9.822e-05,2]
[423291395,1780033843000,-500.0,9.822e-05,2]
[423291394,1780033843000,-500.0,9.822e-05,2]
[423291400,1780033843000,-500.0,9.822e-05,2]
[423291396,1780033843000,-313.94,9.822e-05,2]
[423291398,1780033843000,-461.2,9.822e-05,2]
[423291393,1780033843000,-161.94,9.822e-05,2]
[423291391,1780033843000,-500.0,9.822e-05,2]
[423291399,1780033843000,-433.64,9.822e-05,2]
[423291411,1780033843000,-171.25012711,9.928e-05,2]
[423291430,1780033843000,-205.39152962,0.00010094,2]
[423291405,1780033843000,-209.84,9.822e-05,2]
[423291416,1780033843000,-500.0,0.00010093,2]
[423291414,1780033843000,-492.58554676,0.00010093,2]
[423291415,1780033843000,-500.0,0.00010093,2]
[423291409,1780033843000,-276.99070256,9.905e-05,2]
[423291420,1780033843000,-500.0,0.00010093,2]
[423291417,1780033843000,-500.0,0.00010093,2]
[423291412,1780033843000,-864.0,0.00010069,2]
[423291413,1780033843000,-500.0,0.00010093,2]
[423291422,1780033843000,-500.0,0.00010094,2]
[423291432,1780033843000,-625.32,0.00010094,2]
[423291421,1780033843000,-500.0,0.00010094,2]
[423291427,1780033843000,-302.16,0.00010094,2]
[423291392,1780033843000,-500.0,9.822e-05,2]
[423291418,1780033843000,-500.0,0.00010093,2]
[423291401,1780033843000,-500.0,9.822e-05,2]
[423291373,1780033843000,-500.0,9.821e-05,2]
[423291383,1780033843000,-263.68,9.822e-05,2]
[423291431,1780033843000,-500.0,0.00010094,2]
[423291361,1780033843000,-500.0,9.821e-05,2]
[423291362,1780033843000,-500.0,9.821e-05,2]
[423291364,1780033843000,-500.0,9.821e-05,2]
[423291374,1780033843000,-500.0,9.821e-05,2]
[423291376,1780033843000,-500.0,9.821e-05,2]
[423291375,1780033843000,-500.0,9.821e-05,2]
[423291367,1780033843000,-500.0,9.821e-05,2]
[423291363,1780033843000,-306.6,9.821e-05,2]
[423291365,1780033843000,-429.22,9.821e-05,2]
[423291368,1780033843000,-501.53396121,9.821e-05,2]
[423291370,1780033843000,-500.0,9.821e-05,2]
[423291372,1780033843000,-500.0,9.821e-05,2]
[423291390,1780033843000,-500.0,9.822e-05,2]
[423291366,1780033843000,-264.54,9.821e-05,2]
[423291371,1780033843000,-525.04,9.821e-05,2]
[423291377,1780033843000,-500.0,9.821e-05,2]
[423291379,1780033843000,-500.0,9.822e-05,2]
[423291380,1780033843000,-307.8,9.822e-05,2]
[423291381,1780033843000,-156.64,9.822e-05,2]
[423291382,1780033843000,-500.0,9.822e-05,2]
[423291378,1780033843000,-500.0,9.822e-05,2]
[423291389,1780033843000,-500.0,9.822e-05,2]
[423291384,1780033843000,-500.0,9.822e-05,2]
[423291385,1780033843000,-309.38,9.822e-05,2]
[423291388,1780033843000,-500.0,9.822e-05,2]
[423291386,1780033843000,-500.0,9.822e-05,2]
[423291387,1780033843000,-500.0,9.822e-05,2]
[423291369,1780033843000,-500.0,9.821e-05,2]
[423291425,1780033843000,-500.0,0.00010094,2]
[423291434,1780033843000,-1986.55,0.00010094,2]
[423291433,1780033843000,-224.28,0.00010094,2]
[423291462,1780033843000,-500.0,0.00010096,2]
[423291461,1780033843000,-500.0,0.00010096,2]
[423291463,1780033843000,-500.0,0.00010096,2]
[423291466,1780033843000,-500.0,0.00010096,2]
[423291460,1780033843000,-500.0,0.00010096,2]
[423291464,1780033843000,-500.0,0.00010096,2]
[423291473,1780033843000,-500.0,0.00010096,2]
[423291474,1780033843000,-500.0,0.00010096,2]
[423291475,1780033843000,-500.0,0.00010096,2]
[423291472,1780033843000,-163.7,0.00010096,2]
[423291483,1780033843000,-500.0,0.00010367,2]
[423291478,1780033843000,-500.0,0.00010367,2]
[423291476,1780033843000,-500.0,0.00010096,2]
[423291477,1780033843000,-153.13530791,0.00010308,2]
[423291484,1780033843000,-500.0,0.00010367,2]
[423291485,1780033843000,-500.0,0.00010368,2]
[423291479,1780033843000,-500.0,0.00010367,2]
[423291482,1780033843000,-500.0,0.00010367,2]
[423291480,1780033843000,-500.0,0.00010367,2]
[423291481,1780033843000,-500.0,0.00010367,2]
[423291491,1780033843000,-500.0,0.00010368,2]
[423291494,1780033843000,-500.0,0.00010368,2]
[423291486,1780033843000,-500.0,0.00010368,2]
[423291487,1780033843000,-500.0,0.00010368,2]
[423291488,1780033843000,-283.56,0.00010368,2]
[423291495,1780033843000,-500.0,0.00010369,2]
[423291489,1780033843000,-500.0,0.00010368,2]
[423291493,1780033843000,-1986.55,0.00010368,2]
[423291429,1780033843000,-500.0,0.00010094,2]
[423291459,1780033843000,-500.0,0.00010096,2]
[423291458,1780033843000,-500.0,0.00010096,2]
[423291492,1780033843000,-500.0,0.00010368,2]
[423291471,1780033843000,-500.0,0.00010096,2]
[423291423,1780033843000,-500.0,0.00010094,2]
[423291424,1780033843000,-500.0,0.00010094,2]
[423291428,1780033843000,-500.0,0.00010094,2]
[423291426,1780033843000,-239.82,0.00010094,2]
[423291447,1780033843000,-455.58,0.00010095,2]
[423291490,1780033843000,-500.0,0.00010368,2]
[423291436,1780033843000,-500.0,0.00010095,2]
[423291446,1780033843000,-151.0,0.00010095,2]
[423291456,1780033843000,-500.0,0.00010095,2]
[423291435,1780033843000,-500.0,0.00010094,2]
[423291438,1780033843000,-500.0,0.00010095,2]
[423291442,1780033843000,-500.0,0.00010095,2]
[423291440,1780033843000,-500.0,0.00010095,2]
[423291445,1780033843000,-645.78,0.00010095,2]
[423291437,1780033843000,-500.0,0.00010095,2]
[423291441,1780033843000,-576.48,0.00010095,2]
[423291469,1780033843000,-337.2,0.00010096,2]
[423291443,1780033843000,-500.0,0.00010095,2]
[423291457,1780033843000,-500.0,0.00010096,2]
[423291467,1780033843000,-516.34,0.00010096,2]
[423291455,1780033843000,-500.0,0.00010095,2]
[423291454,1780033843000,-500.0,0.00010095,2]
[423291453,1780033843000,-500.0,0.00010095,2]
[423291452,1780033843000,-500.0,0.00010095,2]
[423291450,1780033843000,-525.04,0.00010095,2]
[423291448,1780033843000,-500.0,0.00010095,2]
[423291449,1780033843000,-500.0,0.00010095,2]
[423291444,1780033843000,-500.0,0.00010095,2]
[423291439,1780033843000,-500.0,0.00010095,2]
[423291451,1780033843000,-500.0,0.00010095,2]
[423291536,1780033844000,-500.0,0.00010641,2]
[423291542,1780033844000,-500.0,0.00010641,2]
[423291541,1780033844000,-500.0,0.00010641,2]
[423291531,1780033844000,-1835.0,0.00010541,2]
[423291533,1780033844000,-443.0,0.00010541,2]
[423291527,1780033844000,-590.51,0.0001037,2]
[423291529,1780033844000,-171.25012711,0.00010441,2]
[423291537,1780033844000,-500.0,0.00010641,2]
[423291530,1780033844000,-1414.0,0.00010541,2]
[423291532,1780033844000,-3629.0,0.00010541,2]
[423291534,1780033844000,-185.0,0.00010541,2]
[423291539,1780033844000,-500.0,0.00010641,2]
[423291544,1780033844000,-500.0,0.00010642,2]
[423291564,1780033844000,-500.0,0.00010643,2]
[423291543,1780033844000,-234.5,0.00010642,2]
[423291540,1780033844000,-166.22,0.00010641,2]
[423291550,1780033844000,-1986.55,0.00010642,2]
[423291549,1780033844000,-500.0,0.00010642,2]
[423291545,1780033844000,-500.0,0.00010642,2]
[423291546,1780033844000,-500.0,0.00010642,2]
[423291547,1780033844000,-491.04,0.00010642,2]
[423291548,1780033844000,-500.0,0.00010642,2]
[423291552,1780033844000,-500.0,0.00010643,2]
[423291555,1780033844000,-500.0,0.00010643,2]
[423291554,1780033844000,-500.0,0.00010643,2]
[423291557,1780033844000,-233.88,0.00010643,2]
[423291535,1780033844000,-219.089,0.00010541,2]
[423291551,1780033844000,-500.0,0.00010642,2]
[423291538,1780033844000,-500.0,0.00010641,2]
[423291510,1780033844000,-500.0,0.00010369,2]
[423291523,1780033844000,-490.48,0.0001037,2]
[423291558,1780033844000,-500.0,0.00010643,2]
[423291497,1780033844000,-500.0,0.00010369,2]
[423291496,1780033844000,-500.0,0.00010369,2]
[423291498,1780033844000,-500.0,0.00010369,2]
[423291499,1780033844000,-500.0,0.00010369,2]
[423291503,1780033844000,-376.83001349,0.00010369,2]
[423291501,1780033844000,-500.0,0.00010369,2]
[423291502,1780033844000,-500.0,0.00010369,2]
[423291500,1780033844000,-500.0,0.00010369,2]
[423291504,1780033844000,-500.0,0.00010369,2]
[423291506,1780033844000,-500.0,0.00010369,2]
[423291508,1780033844000,-500.0,0.00010369,2]
[423291505,1780033844000,-525.04,0.00010369,2]
[423291528,1780033844000,-151.0,0.00010441,2]
[423291507,1780033844000,-500.0,0.00010369,2]
[423291513,1780033844000,-500.0,0.00010369,2]
[423291514,1780033844000,-500.0,0.0001037,2]
[423291524,1780033844000,-225.64,0.0001037,2]
[423291522,1780033844000,-500.0,0.0001037,2]
[423291519,1780033844000,-500.0,0.0001037,2]
[423291516,1780033844000,-500.0,0.0001037,2]
[423291520,1780033844000,-500.0,0.0001037,2]
[423291515,1780033844000,-642.51,0.0001037,2]
[423291521,1780033844000,-307.58,0.0001037,2]
[423291525,1780033844000,-500.0,0.0001037,2]
[423291526,1780033844000,-163.05,0.0001037,2]
[423291518,1780033844000,-500.0,0.0001037,2]
[423291517,1780033844000,-500.0,0.0001037,2]
[423291511,1780033844000,-500.0,0.00010369,2]
[423291556,1780033844000,-297.12,0.00010643,2]
[423291560,1780033844000,-500.0,0.00010643,2]
[423291561,1780033844000,-525.04,0.00010643,2]
[423291593,1780033844000,-500.0,0.00010917,2]
[423291594,1780033844000,-500.0,0.00010917,2]
[423291595,1780033844000,-500.0,0.00010917,2]
[423291597,1780033844000,-500.0,0.00010917,2]
[423291598,1780033844000,-525.04,0.00010917,2]
[423291599,1780033844000,-596.16630694,0.00010917,2]
[423291596,1780033844000,-187.99,0.00010917,2]
[423291601,1780033844000,-500.0,0.00010917,2]
[423291600,1780033844000,-593.54,0.00010917,2]
[423291602,1780033844000,-500.0,0.00010917,2]
[423291603,1780033844000,-458.98,0.00010917,2]
[423291611,1780033844000,-500.0,0.00010918,2]
[423291610,1780033844000,-500.0,0.00010918,2]
[423291604,1780033844000,-500.0,0.00010917,2]
[423291608,1780033844000,-500.0,0.00010918,2]
[423291609,1780033844000,-490.4,0.00010918,2]
[423291607,1780033844000,-480.20417016,0.00010918,2]
[423291605,1780033844000,-500.0,0.00010918,2]
[423291612,1780033844000,-500.0,0.00010918,2]
[423291614,1780033844000,-500.0,0.00010958,3]
[423291617,1780033844000,-1000.0,0.00011075,2]
[423291616,1780033844000,-15000.0,0.00010959,2]
[423291615,1780033844000,-500.0,0.00010958,4]
[423291618,1780033844000,-500.0,0.00011189,2]
[423291613,1780033844000,-500.0,0.00010958,2]
[423291619,1780033844000,-500.0,0.00011189,2]
[423291620,1780033844000,-500.0,0.00011189,2]
[423291591,1780033844000,-253.65,0.00010917,2]
[423291592,1780033844000,-500.0,0.00010917,2]
[423291606,1780033844000,-190.54,0.00010918,2]
[423291582,1780033844000,-500.0,0.00010915,2]
[423291586,1780033844000,-500.0,0.00010916,2]
[423291559,1780033844000,-500.0,0.00010643,2]
[423291562,1780033844000,-500.0,0.00010643,2]
[423291563,1780033844000,-500.0,0.00010643,2]
[423291569,1780033844000,-500.0,0.00010644,2]
[423291566,1780033844000,-500.0,0.00010643,2]
[423291568,1780033844000,-500.0,0.00010644,2]
[423291576,1780033844000,-737.0,0.00010647,2]
[423291553,1780033844000,-500.0,0.00010643,2]
[423291567,1780033844000,-500.0,0.00010643,2]
[423291570,1780033844000,-500.0,0.00010644,2]
[423291574,1780033844000,-500.0,0.00010644,2]
[423291572,1780033844000,-500.0,0.00010644,2]
[423291575,1780033844000,-500.0,0.00010644,2]
[423291565,1780033844000,-500.0,0.00010643,2]
[423291587,1780033844000,-500.0,0.00010916,2]
[423291571,1780033844000,-500.0,0.00010644,2]
[423291581,1780033844000,-500.0,0.00010915,2]
[423291578,1780033844000,-500.0,0.00010915,2]
[423291584,1780033844000,-500.0,0.00010916,2]
[423291580,1780033844000,-500.0,0.00010915,2]
[423291579,1780033844000,-500.0,0.00010915,2]
[423291583,1780033844000,-500.0,0.00010915,2]
[423291588,1780033844000,-500.0,0.00010916,2]
[423291590,1780033844000,-500.0,0.00010916,2]
[423291589,1780033844000,-1986.55,0.00010916,2]
[423291577,1780033844000,-163.08256042,0.00010752,2]
[423291573,1780033844000,-500.0,0.00010644,2]
[423291585,1780033844000,-500.0,0.00010916,2]
[423291658,1780033845000,-500.0,0.00011465,2]
[423291661,1780033845000,-500.0,0.00011465,2]
[423291657,1780033845000,-500.0,0.00011464,2]
[423291662,1780033845000,-151.0,0.00011465,2]
[423291659,1780033845000,-500.0,0.00011465,2]
[423291664,1780033845000,-525.04,0.00011465,2]
[423291656,1780033845000,-1986.55,0.00011464,2]
[423291655,1780033845000,-500.0,0.00011464,2]
[423291654,1780033845000,-500.0,0.00011464,2]
[423291665,1780033845000,-500.0,0.00011465,2]
[423291652,1780033845000,-500.0,0.00011464,2]
[423291660,1780033845000,-500.0,0.00011465,2]
[423291670,1780033845000,-181.296,0.00011471,2]
[423291688,1780033845000,-500.0,0.00011739,2]
[423291677,1780033845000,-500.0,0.00011738,2]
[423291673,1780033845000,-500.0,0.00011737,2]
[423291671,1780033845000,-189.92623004,0.00011471,2]
[423291676,1780033845000,-500.0,0.00011737,2]
[423291675,1780033845000,-234.5,0.00011737,2]
[423291669,1780033845000,-500.0,0.00011466,2]
[423291668,1780033845000,-369.88274181,0.00011466,2]
[423291667,1780033845000,-500.0,0.00011465,2]
[423291674,1780033845000,-500.0,0.00011737,2]
[423291678,1780033845000,-500.0,0.00011738,2]
[423291691,1780033845000,-313.08,0.00011739,2]
[423291683,1780033845000,-500.0,0.00011738,2]
[423291681,1780033845000,-388.93,0.00011738,2]
[423291653,1780033845000,-500.0,0.00011464,2]
[423291672,1780033845000,-500.0,0.00011737,2]
[423291663,1780033845000,-500.0,0.00011465,2]
[423291622,1780033845000,-500.0,0.00011189,2]
[423291647,1780033845000,-377.98,0.00011463,2]
[423291623,1780033845000,-500.0,0.00011189,2]
[423291682,1780033845000,-1986.55,0.00011738,2]
[423291624,1780033845000,-500.0,0.0001119,2]
[423291621,1780033845000,-500.0,0.00011189,2]
[423291626,1780033845000,-500.0,0.0001119,2]
[423291634,1780033845000,-500.0,0.00011191,2]
[423291636,1780033845000,-525.04,0.00011191,2]
[423291630,1780033845000,-500.0,0.0001119,2]
[423291632,1780033845000,-500.0,0.00011191,2]
[423291635,1780033845000,-500.0,0.00011191,2]
[423291637,1780033845000,-500.0,0.00011191,2]
[423291629,1780033845000,-1986.55,0.0001119,2]
[423291631,1780033845000,-500.0,0.00011191,2]
[423291625,1780033845000,-500.0,0.0001119,2]
[423291638,1780033845000,-500.0,0.00011191,2]
[423291627,1780033845000,-500.0,0.0001119,2]
[423291628,1780033845000,-500.0,0.0001119,2]
[423291633,1780033845000,-500.0,0.00011191,2]
[423291639,1780033845000,-500.0,0.00011191,2]
[423291642,1780033845000,-280.14,0.00011192,2]
[423291641,1780033845000,-413.54,0.00011192,2]
[423291640,1780033845000,-500.0,0.00011192,2]
[423291643,1780033845000,-500.0,0.00011192,2]
[423291646,1780033845000,-500.0,0.00011463,2]
[423291650,1780033845000,-500.0,0.00011463,2]
[423291645,1780033845000,-500.0,0.00011463,2]
[423291651,1780033845000,-500.0,0.00011464,2]
[423291644,1780033845000,-351.56,0.00011192,2]
[423291649,1780033845000,-500.0,0.00011463,2]
[423291648,1780033845000,-500.0,0.00011463,2]
[423291687,1780033845000,-500.0,0.00011739,2]
[423291666,1780033845000,-500.0,0.00011465,2]
[423291684,1780033845000,-500.0,0.00011739,2]
[423291722,1780033845000,-500.0,0.00012559,2]
[423291725,1780033845000,-525.04,0.00012561,2]
[423291728,1780033845000,-525.04,0.00012835,2]
[423291724,1780033845000,-151.0,0.00012561,2]
[423291726,1780033845000,-500.0,0.00012833,2]
[423291721,1780033845000,-163.08256042,0.00012332,2]
[423291723,1780033845000,-1986.55,0.00012559,2]
[423291727,1780033845000,-1986.55,0.00012833,2]
[423291729,1780033845000,-500.62616664,0.00013083,2]
[423291730,1780033845000,-500.0,0.00013107,2]
[423291733,1780033845000,-560.35280148,0.00013381,2]
[423291735,1780033845000,-525.04,0.00013383,2]
[423291732,1780033845000,-525.04,0.00013109,2]
[423291734,1780033845000,-1986.55,0.00013381,2]
[423291741,1780033845000,-443.0,0.00013541,2]
[423291737,1780033845000,-492.0,0.00013401,2]
[423291742,1780033845000,-185.0,0.00013541,2]
[423291740,1780033845000,-3629.0,0.00013541,2]
[423291738,1780033845000,-1414.0,0.00013541,2]
[423291736,1780033845000,-1000.0,0.00013401,2]
[423291739,1780033845000,-1835.0,0.00013541,2]
[423291731,1780033845000,-1986.55,0.00013107,2]
[423291745,1780033845000,-525.04,0.00013656,2]
[423291746,1780033845000,-215.86417262,0.00013698,2]
[423291750,1780033845000,-867.55,0.00013698,2]
[423291749,1780033845000,-867.55,0.00013698,2]
[423291744,1780033845000,-1986.55,0.00013655,2]
[423291748,1780033845000,-867.55,0.00013698,2]
[423291685,1780033845000,-500.0,0.00011739,2]
[423291720,1780033845000,-525.04,0.00012287,2]
[423291711,1780033845000,-500.0,0.00012013,2]
[423291747,1780033845000,-867.55,0.00013698,2]
[423291708,1780033845000,-500.0,0.00012012,2]
[423291690,1780033845000,-236.49719784,0.00011739,2]
[423291713,1780033845000,-500.0,0.00012013,2]
[423291679,1780033845000,-500.0,0.00011738,2]
[423291686,1780033845000,-500.0,0.00011739,2]
[423291689,1780033845000,-525.04,0.00011739,2]
[423291692,1780033845000,-204.58,0.00011739,2]
[423291705,1780033845000,-500.0,0.00012012,2]
[423291695,1780033845000,-3832.9039865,0.00011918,2]
[423291698,1780033845000,-500.0,0.00012011,2]
[423291693,1780033845000,-500.0,0.0001174,2]
[423291694,1780033845000,-319.24352159,0.00011905,2]
[423291703,1780033845000,-500.0,0.00012012,2]
[423291704,1780033845000,-500.0,0.00012012,2]
[423291697,1780033845000,-20434.1989267,0.00011918,2]
[423291699,1780033845000,-625.76,0.00012011,2]
[423291680,1780033845000,-500.0,0.00011738,2]
[423291700,1780033845000,-500.0,0.00012011,2]
[423291696,1780033845000,-2683.5437849,0.00011918,2]
[423291718,1780033845000,-500.0,0.00012286,2]
[423291719,1780033845000,-1986.55,0.00012286,2]
[423291710,1780033845000,-291.3,0.00012013,2]
[423291716,1780033845000,-1000.0,0.00012183,2]
[423291709,1780033845000,-433.16328899,0.00012013,2]
[423291712,1780033845000,-287.07,0.00012013,2]
[423291707,1780033845000,-1986.55,0.00012012,2]
[423291715,1780033845000,-500.0,0.00012014,2]
[423291714,1780033845000,-525.04,0.00012013,2]
[423291717,1780033845000,-244.0,0.00012183,2]
[423291701,1780033845000,-500.0,0.00012011,2]
[423291706,1780033845000,-500.0,0.00012012,2]
[423291702,1780033845000,-891.1884508,0.00012012,2]
[423291791,1780033846000,-1118.69422097,0.00014486,2]
[423291796,1780033846000,-326.0126879,0.00014524,2]
[423291792,1780033846000,-165.43431232,0.00014486,2]
[423291788,1780033846000,-1986.55,0.00014477,2]
[423291785,1780033846000,-1986.55,0.00014203,2]
[423291784,1780033846000,-525.04,0.0001393,2]
[423291778,1780033846000,-361.49634062,0.00013905,2]
[423291789,1780033846000,-525.04,0.00014478,2]
[423291776,1780033846000,-151.0,0.00013699,2]
[423291787,1780033846000,-2000.0,0.00014269,7]
[423291780,1780033846000,-160.0,0.00013918,2]
[423291803,1780033846000,-330.86862465,0.0001466,7]
[423291790,1780033846000,-330.86862465,0.00014486,2]
[423291793,1780033846000,-456.7998478,0.00014495,2]
[423291794,1780033846000,-456.7998478,0.00014496,2]
[423291807,1780033846000,-791.0,0.00014741,2]
[423291808,1780033846000,-1986.55,0.00014751,2]
[423291804,1780033846000,-1118.69422097,0.00014696,7]
[423291797,1780033846000,-181.6103544,0.00014527,2]
[423291805,1780033846000,-1118.69422097,0.00014738,7]
[423291806,1780033846000,-1000.0,0.00014741,2]
[423291798,1780033846000,-1118.69422097,0.00014528,2]
[423291799,1780033846000,-473.59592158,0.0001457,2]
[423291779,1780033846000,-163.08256042,0.00013912,2]
[423291800,1780033846000,-1118.69422097,0.0001457,2]
[423291795,1780033846000,-456.7998478,0.00014524,2]
[423291774,1780033846000,-1000.0,0.00013699,2]
[423291767,1780033846000,-867.55,0.00013698,2]
[423291775,1780033846000,-151.0,0.00013699,2]
[423291801,1780033846000,-1118.69422097,0.00014612,7]
[423291756,1780033846000,-867.55,0.00013698,2]
[423291754,1780033846000,-867.55,0.00013698,2]
[423291755,1780033846000,-867.55,0.00013698,2]
[423291751,1780033846000,-867.55,0.00013698,2]
[423291753,1780033846000,-867.55,0.00013698,2]
[423291752,1780033846000,-867.55,0.00013698,2]
[423291758,1780033846000,-867.55,0.00013698,2]
[423291766,1780033846000,-867.55,0.00013698,2]
[423291761,1780033846000,-867.55,0.00013698,2]
[423291762,1780033846000,-867.55,0.00013698,2]
[423291768,1780033846000,-867.55,0.00013698,2]
[423291777,1780033846000,-153.644526,0.00013699,2]
[423291764,1780033846000,-867.55,0.00013698,2]
[423291769,1780033846000,-867.55,0.00013698,2]
[423291759,1780033846000,-867.55,0.00013698,2]
[423291757,1780033846000,-867.55,0.00013698,2]
[423291763,1780033846000,-867.55,0.00013698,2]
[423291765,1780033846000,-867.55,0.00013698,2]
[423291771,1780033846000,-500.0,0.00013698,2]
[423291782,1780033846000,-160.0,0.00013918,2]
[423291781,1780033846000,-160.0,0.00013918,2]
[423291783,1780033846000,-1986.55,0.00013929,2]
[423291772,1780033846000,-500.44113724,0.00013698,2]
[423291770,1780033846000,-867.722683,0.00013698,2]
[423291773,1780033846000,-503.78197211,0.00013698,2]
[423291760,1780033846000,-867.55,0.00013698,2]
[423291802,1780033846000,-1118.69422097,0.00014654,7]
[423291786,1780033846000,-525.04,0.00014204,2]
[423291816,1780033846000,-1118.69422097,0.00014864,14]
[423291842,1780033846000,-1118.69422097,0.00015453,60]